fUST/lending_fUST_20251218
["ID","MTS","AMOUNT","RATE_DAILY","PERIOD"]
[398925569,1766000575947,-262.56563207,0.00041095,120]
[398925570,1766000575973,-177.36183431,0.00041095,120]
[398925571,1766000575997,-210.33287192,0.00041095,120]
[398925572,1766000576020,-500.0,0.00041095,120]
[398925573,1766000576043,-233.86878248,0.00041095,120]
[398925574,1766000576066,-268.81056956,0.00041095,120]
[398925575,1766000576090,-500.0,0.00041095,120]
[398925576,1766000576114,-240.63246166,0.00041095,120]
[398925577,1766000576138,-225.14947174,0.00041095,120]
[398925578,1766000576264,-500.0,0.00041095,120]
[398925579,1766000576288,-242.52149325,0.00041095,120]
[398925580,1766000576311,-368.63638014,0.00041095,120]
[398925581,1766000576335,-217.38060901,0.00041095,120]
[398925582,1766000576362,-500.0,0.00041095,120]
[398925583,1766000576387,-431.44974522,0.00041095,120]
[398925584,1766000576412,-333.47525924,0.00041095,120]
[398925585,1766000576436,-321.09993412,0.00041095,120]
[398925586,1766000576459,-304.36122504,0.00041095,120]
[398925587,1766000576481,-298.1319309,0.00041095,120]
[398925588,1766000576505,-419.89979836,0.00041095,120]
[398925589,1766000576528,-500.0,0.00041096,120]
[398925590,1766000576551,-453.24,0.00041096,120]
[398925591,1766000576574,-152.0,0.000413,120]
[398925592,1766000576599,-1589.75,0.00041369,120]
[398925593,1766000576623,-1000.0,0.00041369,120]
[398925594,1766000576648,-1914.8,0.00041369,120]
[398925595,1766000576671,-500.0,0.00041369,120]
[398925596,1766000576694,-728.1,0.00041369,120]
[398925597,1766000576719,-500.0,0.00041369,120]
[398925598,1766000576743,-500.0,0.00041369,120]
[398925599,1766000576766,-367.23243121,0.00041369,120]
[398925600,1766000576790,-500.0,0.00041369,120]
[398925601,1766000576814,-500.0,0.00041369,120]
[398925602,1766000576837,-212.18143999,0.00041369,120]
[398925603,1766000576859,-209.33377746,0.00041369,120]
[398925604,1766000576882,-268.78261745,0.00041369,120]
[398925605,1766000576904,-339.43283925,0.00041369,120]
[398925606,1766000576929,-1678.24,0.00041369,120]
[398925607,1766000576953,-296.58567619,0.00041369,120]
[398925608,1766000576977,-500.0,0.00041369,120]
[398925609,1766000577001,-500.0,0.00041369,120]
[398925610,1766000577026,-13868.39,0.00041369,120]
[398925611,1766000577050,-695.03,0.00041369,120]
[398925612,1766000577073,-500.0,0.00041369,120]
[398925613,1766000577096,-204.10238869,0.00041369,120]
[398925614,1766000577118,-500.0,0.00041369,120]
[398925615,1766000577143,-1098.22,0.00041369,120]
[398925616,1766000577166,-651.98,0.00041369,120]
[398925617,1766000577189,-415.7114229,0.00041369,120]
[398925618,1766000577213,-500.0,0.00041369,120]
[398925619,1766000577238,-500.0,0.00041369,120]
[398925620,1766000577264,-349.20343344,0.00041369,120]
[398925621,1766000577288,-262.73529591,0.00041369,120]
[398925622,1766000577313,-500.0,0.0004137,120]
[398925623,1766000577336,-285.0,0.000414,120]
[398925624,1766000577359,-615339.771,0.0004144,30]
[398925625,1766000577383,-1589.75,0.00041643,120]
[398925626,1766000577406,-1000.0,0.00041643,120]
[398925627,1766000577429,-1914.8,0.00041643,120]
[398925628,1766000577452,-500.0,0.00041643,120]
[398925629,1766000577476,-728.1,0.00041643,120]
[398925630,1766000577500,-959.93,0.00041643,35]
[398925631,1766000577524,-500.0,0.00041643,120]
[398925632,1766000577547,-500.0,0.00041643,120]
[398925633,1766000577570,-500.0,0.00041643,120]
[398925634,1766000577593,-500.0,0.00041643,120]
[398925635,1766000577617,-1678.24,0.00041643,120]
[398925636,1766000577640,-500.0,0.00041643,120]
[398925637,1766000577663,-500.0,0.00041643,120]
[398925638,1766000577688,-13868.39,0.00041643,120]
[398925639,1766000577711,-695.03,0.00041643,120]
[398925640,1766000577734,-500.0,0.00041643,120]
[398925641,1766000577756,-500.0,0.00041643,120]
[398925642,1766000577781,-1098.22,0.00041643,120]
[398925643,1766000577805,-651.98,0.00041643,120]
[398925644,1766000577831,-500.0,0.00041643,120]
[398925645,1766000577855,-500.0,0.00041643,120]
[398925646,1766000577880,-500.0,0.00041644,120]
[398925647,1766000577903,-152.0,0.000419,120]
[398925648,1766000577929,-1589.75,0.00041917,120]
[398925649,1766000577960,-1000.0,0.00041917,120]
[398925650,1766000577985,-1914.8,0.00041917,120]
[398925651,1766000578012,-500.0,0.00041917,120]
[398925652,1766000578130,-728.1,0.00041917,120]
[398925653,1766000578156,-500.0,0.00041917,120]
[398925654,1766000578181,-500.0,0.00041917,120]
[398925655,1766000578208,-647.32997919,0.00041917,120]
[398925656,1766000578234,-500.0,0.00041917,120]
[398925657,1766000578259,-1678.24,0.00041917,120]
[398925658,1766000578283,-500.0,0.00041917,120]
[398925659,1766000578308,-500.0,0.00041917,120]
[398925660,1766000578334,-13868.39,0.00041917,120]
[398925661,1766000578357,-695.03,0.00041917,120]
[398925662,1766000578381,-500.0,0.00041917,120]
[398925663,1766000578404,-500.0,0.00041917,120]
[398925664,1766000578428,-1098.22,0.00041917,120]
[398925665,1766000578453,-651.98,0.00041917,120]
[398925666,1766000578477,-500.0,0.00041917,120]
[398925667,1766000578501,-500.0,0.00041917,120]
[398925668,1766000578525,-500.0,0.00041918,120]
[398925669,1766000578548,-429.38797412,0.00042,120]
[398925670,1766000578571,-300.0,0.00042,120]
[398925671,1766000578594,-415354.08456819,0.00042,90]
[398925672,1766000588951,-348.0,0.00033,30]
[398925673,1766000588979,-348.0,0.000367,30]
[398925674,1766000589009,-348.0,0.000384,30]
[398925675,1766000589036,-348.0,0.000407,30]
[398925676,1766000589063,-511620.80543181,0.00042,90]
[398925677,1766000589088,-1589.75,0.00042191,120]
[398925678,1766000589112,-1000.0,0.00042191,120]
[398925679,1766000589137,-1914.8,0.00042191,120]
[398925680,1766000589162,-500.0,0.00042191,120]
[398925681,1766000589188,-728.1,0.00042191,120]
[398925682,1766000589217,-959.93,0.00042191,40]
[398925683,1766000589241,-500.0,0.00042191,120]
[398925684,1766000589265,-500.0,0.00042191,120]
[398925685,1766000589289,-500.0,0.00042191,120]
[398925686,1766000589311,-1678.24,0.00042191,120]
[398925687,1766000589334,-500.0,0.00042191,120]
[398925688,1766000589357,-500.0,0.00042191,120]
[398925689,1766000589380,-13868.39,0.00042191,120]
[398925690,1766000589403,-695.03,0.00042191,120]
[398925691,1766000589425,-500.0,0.00042191,120]
[398925692,1766000589448,-500.0,0.00042191,120]
[398925693,1766000589473,-1098.22,0.00042191,120]
[398925694,1766000589496,-651.98,0.00042191,120]
[398925695,1766000589519,-500.0,0.00042191,120]
[398925696,1766000589541,-500.0,0.00042191,120]
[398925697,1766000589562,-500.0,0.00042192,120]
[398925698,1766000589583,-176.38130533,0.000422,120]
[398925699,1766000589693,-203.98437163,0.000422,120]
[398925700,1766000589717,-177.64021354,0.000422,120]
[398925701,1766000589739,-168.94036194,0.000422,120]
[398925702,1766000589761,-215.74962918,0.000422,120]
[398925703,1766000589783,-226.64628966,0.000422,120]
[398925704,1766000589805,-1589.75,0.00042465,120]
[398925705,1766000589827,-1000.0,0.00042465,120]
[398925706,1766000589849,-1914.8,0.00042465,120]
[398925707,1766000589871,-500.0,0.00042465,120]
[398925708,1766000589893,-728.1,0.00042465,120]
[398925709,1766000589915,-500.0,0.00042465,120]
[398925710,1766000589940,-499.63000001,0.00042465,120]
[398925711,1766000589963,-500.0,0.00042465,120]
[398925712,1766000589986,-1678.24,0.00042465,120]
[398925713,1766000590010,-481.46770977,0.00042465,120]
[398925714,1766000590032,-500.0,0.00042465,120]
[398925715,1766000590055,-13868.39,0.00042465,120]
[398925716,1766000590077,-695.03,0.00042465,120]
[398925717,1766000590101,-500.0,0.00042465,120]
[398925718,1766000590125,-500.0,0.00042465,120]
[398925719,1766000590149,-1098.22,0.00042465,120]
[398925720,1766000590172,-651.98,0.00042465,120]
[398925721,1766000590194,-500.0,0.00042465,120]
[398925722,1766000590217,-500.0,0.00042465,120]
[398925723,1766000590240,-500.0,0.00042466,120]
[398925724,1766000590263,-152.0,0.000425,120]
[398925725,1766000590285,-200.0,0.0004267,61]
[398925726,1766000590307,-1193.07582393,0.000427,120]
[398925727,1766000590330,-1589.75,0.00042739,120]
[398925728,1766000590353,-1000.0,0.00042739,120]
[398925729,1766000590374,-1914.8,0.00042739,120]
[398925730,1766000590397,-500.0,0.00042739,120]
[398925731,1766000590420,-728.1,0.00042739,120]
[398925732,1766000590444,-959.93,0.00042739,45]
[398925733,1766000590469,-500.0,0.00042739,120]
[398925734,1766000590492,-500.0,0.00042739,120]
[398925735,1766000590519,-1678.24,0.00042739,120]
[398925736,1766000590542,-500.0,0.00042739,120]
[398925737,1766000590566,-13868.39,0.00042739,120]
[398925738,1766000590589,-695.03,0.00042739,120]
[398925739,1766000590613,-500.0,0.00042739,120]
[398925740,1766000590642,-500.0,0.00042739,120]
[398925741,1766000590665,-1098.22,0.00042739,120]
[398925742,1766000590688,-651.98,0.00042739,120]
[398925743,1766000590712,-500.0,0.00042739,120]
[398925744,1766000590736,-500.0,0.00042739,120]
[398925745,1766000590760,-500.0,0.0004274,120]
[398925746,1766000590791,-285.0,0.00042754,60]
[398925747,1766000590814,-200.0,0.00043,120]
[398925748,1766000590836,-288.33499842,0.00043,120]
[398925749,1766000590859,-1589.75,0.00043013,120]
[398925750,1766000590881,-1000.0,0.00043013,120]
[398925751,1766000590904,-1914.8,0.00043013,120]
[398925752,1766000590927,-398.5,0.00043013,120]
[398925753,1766000590951,-728.1,0.00043013,120]
[398925754,1766000590974,-500.0,0.00043013,120]
[398925755,1766000590997,-500.0,0.00043013,120]
[398925756,1766000591021,-1678.24,0.00043013,120]
[398925757,1766000591044,-500.0,0.00043013,120]
[398925758,1766000591068,-13868.39,0.00043013,120]
[398925759,1766000591090,-695.03,0.00043013,120]
[398925760,1766000591114,-500.0,0.00043013,120]
[398925761,1766000591136,-500.0,0.00043013,120]
[398925762,1766000591159,-1098.22,0.00043013,120]
[398925763,1766000591182,-651.98,0.00043013,120]
[398925764,1766000591205,-500.0,0.00043013,120]
[398925765,1766000591229,-500.0,0.00043013,120]
[398925766,1766000591253,-500.0,0.00043014,120]
[398925767,1766000591276,-152.0,0.000431,120]
[398925768,1766000591391,-348.0,0.000431,30]
[398925769,1766000591417,-240.4963321,0.00043136,30]
[398925770,1766000591440,-1589.75,0.00043287,120]
[398925771,1766000591464,-1000.0,0.00043287,120]
[398925772,1766000591486,-1914.8,0.00043287,120]
[398925773,1766000591509,-728.1,0.00043287,120]
[398925774,1766000591533,-959.93,0.00043287,50]
[398925775,1766000591558,-500.0,0.00043287,120]
[398925776,1766000591582,-500.0,0.00043287,120]
[398925777,1766000591604,-1678.24,0.00043287,120]
[398925778,1766000591627,-500.0,0.00043287,120]
[398925779,1766000591654,-13868.39,0.00043287,120]
[398925780,1766000591677,-695.03,0.00043287,120]
[398925781,1766000591701,-440.19130051,0.00043287,120]
[398925782,1766000591724,-500.0,0.00043287,120]
[398925783,1766000591747,-1098.22,0.00043287,120]
[398925784,1766000591770,-651.98,0.00043287,120]
[398925785,1766000591794,-500.0,0.00043287,120]
[398925786,1766000591817,-500.0,0.00043287,120]
[398925787,1766000591841,-500.0,0.00043288,120]
[398925788,1766000591865,-1589.75,0.00043561,120]
[398925789,1766000591888,-1000.0,0.00043561,120]
[398925790,1766000591910,-1914.8,0.00043561,120]
[398925791,1766000591936,-728.1,0.00043561,120]
[398925792,1766000591958,-500.0,0.00043561,120]
[398925793,1766000591982,-358.80865934,0.00043561,120]
[398925794,1766000592006,-1678.24,0.00043561,120]
[398925795,1766000592030,-500.0,0.00043561,120]
[398925796,1766000592058,-13868.39,0.00043561,120]
[398925797,1766000592081,-695.03,0.00043561,120]
[398925798,1766000592109,-500.0,0.00043561,120]
[398925799,1766000592132,-1098.22,0.00043561,120]
[398925800,1766000592156,-651.98,0.00043561,120]
[398925801,1766000592180,-500.0,0.00043561,120]
[398925802,1766000592202,-500.0,0.00043561,120]
[398925803,1766000592226,-500.0,0.00043562,120]
[398925804,1766000592249,-1000.0,0.000438,90]
[398925805,1766000592273,-1000.0,0.000438,90]
[398925806,1766000592297,-152.0,0.000438,120]
[398925807,1766000592324,-1589.75,0.00043835,120]
[398925808,1766000592347,-1000.0,0.00043835,120]
[398925809,1766000592370,-1914.8,0.00043835,120]
[398925810,1766000592394,-728.1,0.00043835,120]
[398925811,1766000592418,-959.93,0.00043835,55]
[398925812,1766000592443,-500.0,0.00043835,120]
[398925813,1766000592470,-1678.24,0.00043835,120]
[398925814,1766000592495,-500.0,0.00043835,120]
[398925815,1766000592522,-13868.39,0.00043835,120]
[398925816,1766000592548,-695.03,0.00043835,120]
[398925817,1766000592571,-500.0,0.00043835,120]
[398925818,1766000592594,-1098.22,0.00043835,120]
[398925819,1766000592618,-651.98,0.00043835,120]
[398925820,1766000592641,-500.0,0.00043835,120]
[398925821,1766000592665,-569.70925701,0.00043835,120]
[398925822,1766000592689,-500.0,0.00043836,120]
[398925823,1766000592713,-300.0,0.00044,120]
[398925824,1766000592737,-1589.75,0.00044109,120]
[398925825,1766000592761,-1000.0,0.00044109,120]
[398925826,1766000592785,-1914.8,0.00044109,120]
[398925827,1766000592808,-728.1,0.00044109,120]
[398925828,1766000592831,-500.0,0.00044109,120]
[398925829,1766000592855,-1678.24,0.00044109,120]
[398925830,1766000592878,-500.0,0.00044109,120]
[398925831,1766000592902,-13868.39,0.00044109,120]
[398925832,1766000592924,-695.03,0.00044109,120]
[398925833,1766000592951,-500.0,0.00044109,120]
[398925834,1766000592974,-1098.22,0.00044109,120]
[398925835,1766000593084,-651.98,0.00044109,120]
[398925836,1766000593109,-500.0,0.00044109,120]
[398925837,1766000593133,-500.0,0.0004411,120]
[398925838,1766000593157,-1589.75,0.00044383,120]
[398925839,1766000593181,-1000.0,0.00044383,120]
[398925840,1766000593218,-1914.8,0.00044383,120]
[398925841,1766000593246,-728.1,0.00044383,120]
[398925842,1766000593272,-959.93,0.00044383,60]
[398925843,1766000593298,-500.0,0.00044383,120]
[398925844,1766000593323,-1678.24,0.00044383,120]
[398925845,1766000593348,-500.0,0.00044383,120]
[398925846,1766000593373,-13868.39,0.00044383,120]
[398925847,1766000593397,-695.03,0.00044383,120]
[398925848,1766000593422,-500.0,0.00044383,120]
[398925849,1766000593447,-1098.22,0.00044383,120]
[398925850,1766000593471,-651.98,0.00044383,120]
[398925851,1766000593495,-500.0,0.00044383,120]
[398925852,1766000593521,-500.0,0.00044384,120]
[398925853,1766000593544,-152.0,0.000444,120]
[398925854,1766000593568,-1589.75,0.00044657,120]
[398925855,1766000593590,-1000.0,0.00044657,120]
[398925856,1766000593614,-1914.8,0.00044657,120]
[398925857,1766000593637,-728.1,0.00044657,120]
[398925858,1766000593660,-500.0,0.00044657,120]
[398925859,1766000593683,-1678.24,0.00044657,120]
[398925860,1766000593706,-500.0,0.00044657,120]
[398925861,1766000593730,-13868.39,0.00044657,120]
[398925862,1766000593754,-695.03,0.00044657,120]
[398925863,1766000593781,-500.0,0.00044657,120]
[398925864,1766000593806,-1098.22,0.00044657,120]
[398925865,1766000593831,-651.98,0.00044657,120]
[398925866,1766000593855,-217.44974384,0.00044657,120]
[398925867,1766000593882,-500.0,0.00044658,120]
[398925868,1766000593908,-375.4026437,0.0004485,30]
[398925869,1766000593937,-375.4026437,0.0004485,30]
[398925870,1766000593962,-375.4026437,0.0004485,30]
[398925871,1766000593988,-375.4026437,0.0004485,30]
[398925872,1766000594013,-169.0,0.00044865,120]
[398925873,1766000594039,-50000.0,0.000449,120]
[398925874,1766000594065,-1589.75,0.00044931,120]
[398925875,1766000594091,-360.86323602,0.00044931,120]
[398925876,1766000594116,-1914.8,0.00044931,120]
[398925877,1766000594140,-728.1,0.00044931,120]
[398925878,1766000594169,-959.93,0.00044931,65]
[398925879,1766000594203,-500.0,0.00044931,120]
[398925880,1766000594229,-1678.24,0.00044931,120]
[398925881,1766000594253,-500.0,0.00044931,120]
[398925882,1766000594278,-13868.39,0.00044931,120]
[398925883,1766000594304,-695.03,0.00044931,120]
[398925884,1766000594328,-500.0,0.00044931,120]
[398925885,1766000594353,-1098.22,0.00044931,120]
[398925886,1766000594377,-651.98,0.00044931,120]
[398925887,1766000594401,-500.0,0.00044932,120]
[398925888,1766000594424,-1000.0,0.00045,30]
[398925889,1766000594448,-2500.0,0.00045,120]
[398925890,1766000594472,-152.0,0.00045,120]
[398925891,1766000594496,-200.0,0.00045,120]
[398925892,1766000594519,-201.58590292,0.00045,120]
[398925893,1766000594544,-191.91,0.00045,120]
[398925894,1766000594570,-217.38,0.00045,120]
[398925895,1766000594593,-1589.75,0.00045205,120]
[398925896,1766000594616,-1914.8,0.00045205,120]
[398925897,1766000594639,-728.1,0.00045205,120]
[398925898,1766000594662,-502.73537459,0.00045205,120]
[398925899,1766000594686,-1678.24,0.00045205,120]
[398925900,1766000594808,-500.0,0.00045205,120]
[398925901,1766000594834,-13868.39,0.00045205,120]
[398925902,1766000594858,-695.03,0.00045205,120]
[398925903,1766000594882,-500.0,0.00045205,120]
[398925904,1766000594905,-1098.22,0.00045205,120]
[398925905,1766000594933,-651.98,0.00045205,120]
[398925906,1766000594957,-500.0,0.00045205,120]
[398925907,1766000594984,-527434.0894,0.0004544,30]
[398925908,1766000595007,-1589.75,0.00045479,120]
[398925909,1766000595030,-1914.8,0.00045479,120]
[398925910,1766000595053,-728.1,0.00045479,120]
[398925911,1766000595079,-959.93,0.00045479,70]
[398925912,1766000595102,-1678.24,0.00045479,120]
[398925913,1766000595125,-467.30848207,0.00045479,120]
[398925914,1766000595150,-13868.39,0.00045479,120]
[398925915,1766000595173,-695.03,0.00045479,120]
[398925916,1766000595197,-500.0,0.00045479,120]
[398925917,1766000595221,-1098.22,0.00045479,120]
[398925918,1766000595245,-651.98,0.00045479,120]
[398925919,1766000595270,-500.0,0.00045479,120]
[398925920,1766000595293,-152.0,0.000457,120]
[398925921,1766000595317,-1589.75,0.00045753,120]
[398925922,1766000595343,-1914.8,0.00045753,120]
[398925923,1766000595366,-728.1,0.00045753,120]
[398925924,1766000595388,-1678.24,0.00045753,120]
[398925925,1766000595412,-13868.39,0.00045753,120]
[398925926,1766000595435,-695.03,0.00045753,120]
[398925927,1766000595459,-500.0,0.00045753,120]
[398925928,1766000595482,-1098.22,0.00045753,120]
[398925929,1766000595505,-651.98,0.00045753,120]
[398925930,1766000595528,-500.0,0.00045753,120]
[398925931,1766000595552,-375.4026437,0.00045809,30]
[398925932,1766000595575,-375.4026437,0.00045809,30]
[398925933,1766000595597,-375.4026437,0.00045809,30]
[398925934,1766000595619,-375.4026437,0.00045809,30]
[398925935,1766000595642,-375.4026437,0.00045809,30]
[398925936,1766000595664,-375.4026437,0.00045809,30]
[398925937,1766000595686,-375.4026437,0.00045809,30]
[398925938,1766000595708,-200.0670931,0.00045809,30]
[398925939,1766000595731,-300.0,0.00046,120]
[398925940,1766000595755,-71517.84782566,0.00046,30]
[398925941,1766000595778,-1589.75,0.00046027,120]
[398925942,1766000595801,-1914.8,0.00046027,120]
[398925943,1766000595823,-728.1,0.00046027,120]
[398925944,1766000595846,-959.93,0.00046027,75]
[398925945,1766000595869,-1678.24,0.00046027,120]
[398925946,1766000595894,-13868.39,0.00046027,120]
[398925947,1766000595916,-695.03,0.00046027,120]
[398925948,1766000595941,-500.0,0.00046027,120]
[398925949,1766000595965,-1098.22,0.00046027,120]
[398925950,1766000595991,-651.98,0.00046027,120]
[398925951,1766000596016,-500.0,0.00046027,120]
[398925952,1766000596040,-152.0,0.000463,120]
[398925953,1766000596063,-1589.75,0.00046301,120]
[398925954,1766000596097,-1914.8,0.00046301,120]
[398925955,1766000596123,-728.1,0.00046301,120]
[398925956,1766000596149,-1678.24,0.00046301,120]
[398925957,1766000596175,-13868.39,0.00046301,120]
[398925958,1766000596199,-695.03,0.00046301,120]
[398925959,1766000596223,-500.0,0.00046301,120]
[398925960,1766000596247,-1098.22,0.00046301,120]
[398925961,1766000596271,-651.98,0.00046301,120]
[398925962,1766000596298,-500.0,0.00046301,120]
[398925963,1766000596435,-309.4872108,0.00046301,30]
[398925964,1766000596459,-1589.75,0.00046575,120]
[398925965,1766000596485,-1914.8,0.00046575,120]
[398925966,1766000596508,-728.1,0.00046575,120]
[398925967,1766000596532,-959.93,0.00046575,80]
[398925968,1766000596555,-1678.24,0.00046575,120]
[398925969,1766000596580,-13868.39,0.00046575,120]
[398925970,1766000596604,-695.03,0.00046575,120]
[398925971,1766000596627,-500.0,0.00046575,120]
[398925972,1766000596651,-1098.22,0.00046575,120]
[398925973,1766000596679,-651.98,0.00046575,120]
[398925974,1766000596707,-581.38,0.00046575,120]
[398925975,1766000596738,-269.7,0.00046645,120]
[398925976,1766000596767,-1589.75,0.00046849,120]
[398925977,1766000596793,-1914.8,0.00046849,120]
[398925978,1766000596818,-728.1,0.00046849,120]
[398925979,1766000596842,-1678.24,0.00046849,120]
[398925980,1766000596867,-13868.39,0.00046849,120]
[398925981,1766000596889,-695.03,0.00046849,120]
[398925982,1766000596912,-548.47226262,0.00046849,120]
[398925983,1766000596937,-1098.22,0.00046849,120]
[398925984,1766000596960,-651.98,0.00046849,120]
[398925985,1766000596986,-50000.0,0.000469,120]
[398925986,1766000597011,-152.0,0.000469,120]
[398925987,1766000597035,-200.0,0.000469,120]
[398925988,1766000597059,-200.0,0.00047,120]
[398925989,1766000597082,-169.0,0.00047108,120]
[398925990,1766000597104,-1589.75,0.00047123,120]
[398925991,1766000597128,-1914.8,0.00047123,120]
[398925992,1766000597151,-728.1,0.00047123,120]
[398925993,1766000597175,-959.93,0.00047123,85]
[398925994,1766000597198,-1678.24,0.00047123,120]
[398925995,1766000597224,-13868.39,0.00047123,120]
[398925996,1766000597248,-695.03,0.00047123,120]
[398925997,1766000597271,-1098.22,0.00047123,120]
[398925998,1766000597294,-651.98,0.00047123,120]
[398925999,1766000597318,-191.91,0.0004725,120]
[398926000,1766000597342,-1589.76468716,0.00047397,120]
[398926001,1766000597365,-1915.01936082,0.00047397,120]
[398926002,1766000597389,-728.13934563,0.00047397,120]
[398926003,1766000597412,-1678.36952678,0.00047397,120]
[398926004,1766000597436,-13868.53928736,0.00047397,120]
[398926005,1766000597458,-695.09055878,0.00047397,120]
[398926006,1766000597482,-1098.23465047,0.00047397,120]
[398926007,1766000597505,-652.09734087,0.00047397,120]
[398926008,1766000597528,-152.0,0.000475,120]
[398926009,1766000597552,-959.93,0.00047671,90]
[398926010,1766000597575,-500.0,0.000478,60]
[398926011,1766000597598,-300.0,0.00048,120]
[398926012,1766000597620,-152.0,0.000482,120]
[398926013,1766000597644,-959.93,0.00048219,95]
[398926014,1766000597667,-172.29,0.00048444,120]
[398926015,1766000597689,-959.93,0.00048767,100]
[398926016,1766000597713,-152.0,0.000488,120]
[398926017,1766000597739,-326.38427503,0.000488,120]
[398926018,1766000597764,-500.0,0.00048896,60]
[398926019,1766000597788,-150.4740975,0.000489,120]
[398926020,1766000597812,-200.0,0.00049,120]
[398926021,1766000597834,-29021.14496689,0.00049,120]
[398926022,1766000597857,-959.93,0.00049315,105]
[398926023,1766000597943,-152.0,0.000494,120]
[398926024,1766000597983,-10262.60764165,0.0004943,120]
[398926025,1766000598007,-151.0,0.00049443,30]
[398926026,1766000598031,-156.587,0.00049443,30]
[398926027,1766000598054,-162.380719,0.00049443,30]
[398926028,1766000598078,-168.3888056,0.00049443,30]
[398926029,1766000598100,-175.59174841,0.00049443,30]
[398926030,1766000598123,-999077.1746,0.00049444,30]
[398926031,1766000598146,-169.0,0.00049464,120]
[398926032,1766000598170,-959.93,0.00049863,110]
[398926033,1766000598194,-1000.0,0.000499,90]
[398926034,1766000598218,-2000.0,0.000499,120]
[398926035,1766000598242,-500.0,0.00049992,60]
[398926036,1766000598265,-390.67,0.0005,120]
[398926037,1766000598287,-1503.4,0.0005,120]
[398926038,1766000598310,-200.0,0.0005,120]
[398926039,1766000598333,-168.57365064,0.0005,120]
[398926040,1766000598356,-264.81353542,0.0005,120]
[398926041,1766000598378,-405.23803344,0.0005,120]
[398926042,1766000598402,-216.73343482,0.0005,120]
[398926043,1766000598427,-500.0,0.0005,120]
[398926044,1766000598451,-998.98632548,0.0005,120]
[398926045,1766000598474,-1014.0,0.0005,120]
[398926046,1766000598498,-500.0,0.0005,120]
[398926047,1766000598523,-3000.0,0.0005,120]
[398926048,1766000598545,-200.0,0.0005,120]
[398926049,1766000598568,-24146.85533059,0.0005,120]
[398926050,1766000598590,-1000.0,0.0005,120]
[398926051,1766000598614,-152.0,0.0005,120]
[398926052,1766000598637,-212.95,0.0005,120]
[398926053,1766000598661,-172853.88378116,0.0005,120]
[398926054,1766000609647,-565.83227605,0.000332,117]
[398926055,1766000609672,-565.83227602,0.000332,117]
[398926056,1766000609696,-565.83227602,0.00034687,120]
[398926057,1766000609721,-151.0,0.00038199,31]
[398926058,1766000609744,-151.0,0.00038199,31]
[398926059,1766000609768,-151.0,0.00038199,31]
[398926060,1766000609791,-151.0,0.00038199,31]
[398926061,1766000609815,-370.730572,0.00038199,31]
[398926062,1766000609838,-370.730572,0.00038199,31]
[398926063,1766000609862,-151.0,0.00038199,31]
[398926064,1766000609887,-151.0,0.00038199,31]
[398926065,1766000609912,-151.0,0.00038199,31]
[398926066,1766000609943,-151.0,0.00042,120]
[398926067,1766000609966,-151.0,0.00042,60]
[398926068,1766000609992,-370.730572,0.00042,120]